{"text_format":"3","workbook":"xlsx","n_sheets":1,"sheets":["Λίστα αγορών"],"not_rendered":{"images":1,"external_links":1,"defined_names":3},"read":"whole","date_system":"1900"}

{"sheet":"Λίστα αγορών","index":0,"n_rows":31,"n_cols":8,"rows_kept":31,"merged":[[1,1,1,2]]}
[null,"Λίστα αγορών"]
[null,"ΗΜΕΡΟΜΗΝΙΑ"]
[null,"Τελειώσατε?","Είδος","Κατηγορία","Ποσότητα","Τιμή","Τελική τιμή","Μάρκα/Σχόλια"]
[null,null,"Πορτοκάλια","Φρούτα και λαχανικά",null,null,{"$f":"IFERROR(SUM(ΛίσταΑγορών[Ποσότητα]*ΛίσταΑγορών[Τιμή]), \"\")","v":{"v":0,"d":"0.00 €"}}]
[null,null,"Μήλα","Φρούτα και λαχανικά",null,null,{"$f":"IFERROR(SUM(ΛίσταΑγορών[Ποσότητα]*ΛίσταΑγορών[Τιμή]), \"\")","v":{"v":0,"d":"0.00 €"}}]
[null,null,"Μπανάνες","Φρούτα και λαχανικά",null,null,{"$f":"IFERROR(SUM(ΛίσταΑγορών[Ποσότητα]*ΛίσταΑγορών[Τιμή]), \"\")","v":{"v":0,"d":"0.00 €"}}]
[null,null,"Μαρούλια","Φρούτα και λαχανικά",null,null,{"$f":"IFERROR(SUM(ΛίσταΑγορών[Ποσότητα]*ΛίσταΑγορών[Τιμή]), \"\")","v":{"v":0,"d":"0.00 €"}}]
[null,null,"Τομάτες","Φρούτα και λαχανικά",null,null,{"$f":"IFERROR(SUM(ΛίσταΑγορών[Ποσότητα]*ΛίσταΑγορών[Τιμή]), \"\")","v":{"v":0,"d":"0.00 €"}},"  "]
[null,null,"Γάλα ","Γαλακτοκομικά",null,null,{"$f":"IFERROR(SUM(ΛίσταΑγορών[Ποσότητα]*ΛίσταΑγορών[Τιμή]), \"\")","v":{"v":0,"d":"0.00 €"}}]
[null,null,"Τυρί","Γαλακτοκομικά",null,null,{"$f":"IFERROR(SUM(ΛίσταΑγορών[Ποσότητα]*ΛίσταΑγορών[Τιμή]), \"\")","v":{"v":0,"d":"0.00 €"}}]
[null,null,"Αυγά","Γαλακτοκομικά",null,null,{"$f":"IFERROR(SUM(ΛίσταΑγορών[Ποσότητα]*ΛίσταΑγορών[Τιμή]), \"\")","v":{"v":0,"d":"0.00 €"}}]
[null,null,"Τυρί κότατζ","Γαλακτοκομικά",null,null,{"$f":"IFERROR(SUM(ΛίσταΑγορών[Ποσότητα]*ΛίσταΑγορών[Τιμή]), \"\")","v":{"v":0,"d":"0.00 €"}}]
[null,null,"Μοσχαρίσιο κρέας","Κρέας",null,null,{"$f":"IFERROR(SUM(ΛίσταΑγορών[Ποσότητα]*ΛίσταΑγορών[Τιμή]), \"\")","v":{"v":0,"d":"0.00 €"}}]
[null,null,"Πουλερικά","Κρέας",null,null,{"$f":"IFERROR(SUM(ΛίσταΑγορών[Ποσότητα]*ΛίσταΑγορών[Τιμή]), \"\")","v":{"v":0,"d":"0.00 €"}}]
[null,null,"Ζαμπόν","Κρέας",null,null,{"$f":"IFERROR(SUM(ΛίσταΑγορών[Ποσότητα]*ΛίσταΑγορών[Τιμή]), \"\")","v":{"v":0,"d":"0.00 €"}}]
[null,null,"Χυμός","Ποτά",null,null,{"$f":"IFERROR(SUM(ΛίσταΑγορών[Ποσότητα]*ΛίσταΑγορών[Τιμή]), \"\")","v":{"v":0,"d":"0.00 €"}}]
[null,null,"Καφές","Ποτά",null,null,{"$f":"IFERROR(SUM(ΛίσταΑγορών[Ποσότητα]*ΛίσταΑγορών[Τιμή]), \"\")","v":{"v":0,"d":"0.00 €"}}]
[null,null,"Τσάι","Ποτά",null,null,{"$f":"IFERROR(SUM(ΛίσταΑγορών[Ποσότητα]*ΛίσταΑγορών[Τιμή]), \"\")","v":{"v":0,"d":"0.00 €"}}]
[null,null,"Νερό","Ποτά",null,null,{"$f":"IFERROR(SUM(ΛίσταΑγορών[Ποσότητα]*ΛίσταΑγορών[Τιμή]), \"\")","v":{"v":0,"d":"0.00 €"}}]
[null,null,"Λαζάνια","Ζυμαρικά",null,null,{"$f":"IFERROR(SUM(ΛίσταΑγορών[Ποσότητα]*ΛίσταΑγορών[Τιμή]), \"\")","v":{"v":0,"d":"0.00 €"}}]
[null,null,"Ρύζι","Ζυμαρικά",null,null,{"$f":"IFERROR(SUM(ΛίσταΑγορών[Ποσότητα]*ΛίσταΑγορών[Τιμή]), \"\")","v":{"v":0,"d":"0.00 €"}}]
[null,null,"Κονσέρβες","Σούπα",null,null,{"$f":"IFERROR(SUM(ΛίσταΑγορών[Ποσότητα]*ΛίσταΑγορών[Τιμή]), \"\")","v":{"v":0,"d":"0.00 €"}}]
[null,null,"Ξηροί καρποί","Σούπα",null,null,{"$f":"IFERROR(SUM(ΛίσταΑγορών[Ποσότητα]*ΛίσταΑγορών[Τιμή]), \"\")","v":{"v":0,"d":"0.00 €"}}]
[null,null,"Ψωμί","Αρτοποιήματα",null,null,{"$f":"IFERROR(SUM(ΛίσταΑγορών[Ποσότητα]*ΛίσταΑγορών[Τιμή]), \"\")","v":{"v":0,"d":"0.00 €"}}]
[null,null,"Πατατάκια","Σνακ",null,null,{"$f":"IFERROR(SUM(ΛίσταΑγορών[Ποσότητα]*ΛίσταΑγορών[Τιμή]), \"\")","v":{"v":0,"d":"0.00 €"}}]
[null,null,"Αλμυρά σνακ","Σνακ",null,null,{"$f":"IFERROR(SUM(ΛίσταΑγορών[Ποσότητα]*ΛίσταΑγορών[Τιμή]), \"\")","v":{"v":0,"d":"0.00 €"}}]
[null,null,"Παγωτό","Σνακ",null,null,{"$f":"IFERROR(SUM(ΛίσταΑγορών[Ποσότητα]*ΛίσταΑγορών[Τιμή]), \"\")","v":{"v":0,"d":"0.00 €"}}]
[null,null,"Μπισκότα","Σνακ",null,null,{"$f":"IFERROR(SUM(ΛίσταΑγορών[Ποσότητα]*ΛίσταΑγορών[Τιμή]), \"\")","v":{"v":0,"d":"0.00 €"}}]
[null,null,"Χάρτινα πιάτα","Προμήθειες",null,null,{"$f":"IFERROR(SUM(ΛίσταΑγορών[Ποσότητα]*ΛίσταΑγορών[Τιμή]), \"\")","v":{"v":0,"d":"0.00 €"}}]
[null,null,"Χαρτοπετσέτες","Προμήθειες",null,null,{"$f":"IFERROR(SUM(ΛίσταΑγορών[Ποσότητα]*ΛίσταΑγορών[Τιμή]), \"\")","v":{"v":0,"d":"0.00 €"}}]
[{"$nulls":6},{"$f":"SUBTOTAL(109,ΛίσταΑγορών[Τελική τιμή])","v":{"v":0,"d":"0.00 €"}}]